Cogmind - Beta 14 @@@ ROGUE MODE // 2025.05.01 @ 20:42:06 Player: Polariusz Result: Destroyed by H-66 Slayer with Gauss Rifle Performance ------------- Evolutions (1) 500 Regions Visited (5) 1000 Robots Destroyed (48) 240 Value Destroyed (1293) 1293 Prototype IDs (5) 100 Alien Tech Used (0) 0 Bonus (814) 814 TOTAL SCORE: 3947 Bonus ------- High Alert Combat Kills 74 Follower Combat Kills 160 Met Imprinter 300 Was Imprinted 300 Friendly Fire -20 Cogmind --------- Core Integrity 0/400 Matter 204/300 Energy 100/100 System Corruption 0% Temperature Cool (0) Movement Rolling (100) Location -6/Proximity Caves Parts ------- > --- POWER (1) -------- (None) > --- PROPULSION (3) --- Compact Wheel > --- UTILITY (3) ------ Layered Light Armor Plating Hacking Suite > --- WEAPON (2) ------- (None) > --- INVENTORY (5) ---- Light Nuclear Core Sensor Array Targeting Computer Light Cannon CR-A16's Pointy Stick Peak State ------------ > --- POWER ------------ Light Ion Engine > --- PROPULSION ------- Wheel Compact Wheel Compact Wheel > --- UTILITY ---------- Small Storage Unit Hacking Suite Mobile Refinery Mk. CCLXVII > --- WEAPON ----------- Gauss Rifle Heavy Rocket Launcher > --- INVENTORY -------- Sensor Array Targeting Computer Targeting Computer Layered Light Armor Plating Layered Light Armor Plating Heavy Assault Rifle Light Cannon Heavy Hammer [Rating: 23] Favorites ----------- Power Ion Engine Engine Ion Engine Propulsion Compact Wheel Leg Aluminum Leg Wheel Compact Wheel Utility Small Storage Unit Device Disposable Heat Sink Storage Small Storage Unit Hackware Hacking Suite Protection Layered Light Armor Plating Weapon Gauss Rifle Energy Gun EM Shotgun Ballistic Gun Gauss Rifle Ballistic Cannon Light Cannon Launcher Heavy Rocket Launcher Impact Weapon Heavy Hammer Piercing Weapon CR-A16's Pointy Stick Build | -11 -10 -9 -9 -7 -6 ------- Run | Yrd Mat Mat Min Zio Pro Slots Evolved 2 | . . 2 . . . Power . | . . . . . . Propulsion 1 | . . 1 . . . Utility 1 | . . 1 . . . Weapon . | . . . . . . Parts Attached 63 | 7 16 22 4 7 7 Power 5 | 1 1 2 . 1 . Engine 5 | 1 1 2 . 1 . Core . | . . . . . . Reactor . | . . . . . . Propulsion 15 | 3 3 7 1 . 1 Treads . | . . . . . . Leg 1 | 1 . . . . . Wheel 14 | 2 3 7 1 . 1 Hover . | . . . . . . Flight . | . . . . . . Utility 13 | 1 3 5 1 2 1 Device 5 | . 3 1 . 1 . Storage 1 | 1 . . . . . Processor . | . . . . . . Hackware 1 | . . 1 . . . Protection 6 | . . 3 1 1 1 Artifact . | . . . . . . Weapon 30 | 2 9 8 2 4 5 Energy Gun 13 | 2 7 4 . . . Energy Cannon . | . . . . . . Ballistic Gun 10 | . 2 3 . 2 3 Ballistic Cannon 2 | . . 1 . 1 . Launcher 3 | . . . 1 1 1 Special Weapon . | . . . . . . Impact Weapon 1 | . . . 1 . . Slashing Weapon . | . . . . . . Piercing Weapon 1 | . . . . . 1 Special Melee Weapon . | . . . . . . Unidentified Prototypes 2 | . 1 . . 1 . Parts Lost 16 | . 1 8 . . 7 Power 1 | . . . . . 1 Propulsion 6 | . 1 3 . . 2 Utility 2 | . . 1 . . 1 Weapon 7 | . . 4 . . 3 Highest Loss Streak 3 | . 1 3 . . 3 To Critical Strikes 1 | . . 1 . . . Average Slot Usage (%) 93 | . 93 86 99 100 87 Engine 10 | . 13 11 11 11 6 Wheel 27 | . 27 21 32 33 26 Device 7 | . 9 14 . 6 . Storage 11 | . 14 11 11 11 10 Hackware 6 | . . 1 11 11 11 Protection 5 | . . 5 11 4 11 Energy Gun 8 | . 27 13 . . . Ballistic Gun 9 | . . 7 11 11 16 Launcher 3 | . . . 2 11 . Peak Build Rating 23 | 6 9 13 17 23 21 Average Rating 15 | 4 7 11 15 20 18 On Entrance 10 | . 6 9 11 16 18 Naked Turns . | . . . . . . Heaviest Build 25 | 13 17 24 20 25 23 Greatest Support 48 | 26 32 48 42 42 42 Greatest Overweight (x) 1 | . 1 . . . . Average Overweight (x) . | . . . . . . Largest Inventory Capacity 8 | 8 8 8 8 8 8 Average Capacity 7 | 6 8 8 8 8 7 Most Carried 8 | 3 8 8 8 8 8 Average Carried 7 | 1 5 7 7 7 7 Final Capacity 8 | 8 8 8 8 8 5 Final Carried 8 | 1 7 8 8 7 5 Class Distribution -------------------- 51% | Scavenger-Mutant 48% | Mutant Dominant Class ---------------- Mutant | -10/Materials Mutant | -9/Materials Scavenger-Mutant | -9/Mines Scavenger-Mutant | -7/Zion Scavenger-Mutant | -6/Proximity Caves Resources | -11 -10 -9 -9 -7 -6 ----------- Run | Yrd Mat Mat Min Zio Pro Matter Collected 1147 | 223 127 464 46 76 211 Remotely . | . . . . . . Salvage Created 1693 | . 265 1324 56 . 48 Parts 107 | . 26 79 1 . 1 Haulers Intercepted . | . . . . . . Recyclers Shooed 1 | . . 1 . . . Parts Field Recycled . | . . . . . . Retrieved Matter . | . . . . . . Parts Self-Destructed 11 | . . . . . 11 Prevented . | . . . . . . Kills | -11 -10 -9 -9 -7 -6 ------- Run | Yrd Mat Mat Min Zio Pro Combat Hostiles Destroyed 38 | . 10 25 1 . 2 Guns 36 | . 10 24 . . 2 AOE 2 | . . 1 1 . . Classes Destroyed 8 | . 3 5 . . . Worker 1 | . . 1 . . . Recycler 2 | . . 1 1 . . Operator 3 | . . 3 . . . Watcher 4 | . 1 3 . . . Swarmer 12 | . 6 3 1 . 2 Grunt 19 | . 4 15 . . . Brawler 1 | . . 1 . . . Sentry 6 | . . 6 . . . Best Kill Streak 6 | . 4 6 1 . 1 Combat Bots Only 6 | . 3 6 1 . 1 Max Kills in Single Turn 2 | . 2 2 1 . 1 Gunslinging 1 | . 1 . . . . Exploded 1 | . . 1 1 . . Melee . | . . . . . . Uniques/NPCs Destroyed . | . . . . . . Combat | -11 -10 -9 -9 -7 -6 -------- Run | Yrd Mat Mat Min Zio Pro Hostile Shots Fired 279 | . 47 114 3 . 115 Missed 67 | . 11 16 1 . 39 Damage Taken 2578 | . 348 1223 16 . 991 Core 499 | . 90 275 . . 134 Absorbed by Shields . | . . . . . . Regen/Repaired (Parts) 2 | . . 2 . . . Core Remaining (%) 82 | 100 64 . . . . Volleys Fired 121 | . 25 66 1 . 29 Largest 2 | . 2 2 2 . 2 Hottest 105 | . 105 90 53 . 67 Shots Fired 237 | . 50 132 2 . 53 Gun 221 | . 50 132 1 . 38 Cannon 11 | . . . . . 11 Launcher 5 | . . . 1 . 4 Special . | . . . . . . Kinetic 111 | . . 61 1 . 49 Thermal 50 | . 48 2 . . . Explosive 5 | . . . 1 . 4 Electromagnetic 71 | . 2 69 . . . Robot Hit Streak 15 | . 15 13 5 . 9 Robot Miss Streak 6 | . 4 3 . . 6 Penetration Max . | . . . . . . Secondary Targets 5 | . 2 3 . . . Max Gunslinging Chain 1 | . 1 1 . . . Shots Hit Robots 161 | . 31 103 3 . 24 Core Hits 89 | . 17 64 1 . 7 Critical Kills . | . . . . . . Critical Parts Destroyed 1 | . . . 1 . . Critical Strikes 4 | . 2 . 1 . 1 Burn 2 | . 2 . . . . Blast 1 | . . . . . 1 Smash 1 | . . . 1 . . Melee Attacks 7 | . . . 3 . 4 Impact 3 | . . . 3 . . Slashing . | . . . . . . Piercing 4 | . . . . . 4 Sneak Attacks 1 | . . . 1 . . Combat Hostiles . | . . . . . . Follow-up Attacks . | . . . . . . Damage Inflicted 2748 | . 380 1651 163 . 554 Guns 2320 | . 380 1618 18 . 304 Cannons 50 | . . . . . 50 Explosions 285 | . . 33 52 . 200 Melee 93 | . . . 93 . . Ramming . | . . . . . . Kinetic 1045 | . . 673 18 . 354 Thermal 424 | . 362 62 . . . Explosive 252 | . . . 52 . 200 Electromagnetic 934 | . 18 916 . . . Impact 93 | . . . 93 . . Slashing . | . . . . . . Piercing . | . . . . . . Highest Corruption 3 | . . 3 3 3 . Average Corruption 3 | . . 3 3 3 . Corruption Purged . | . . . . . . Corruption Blocked . | . . . . . . Effects 8 | . . 5 2 1 . Message Errors 2 | . . 2 . . . Matter Fused 3 | . . 1 1 1 . Energy Discharges 1 | . . 1 . . . Parts Fused 1 | . . 1 . . . Data Loss (minor) 1 | . . . 1 . . Overload Shots . | . . . . . . Overflow Damage 122 | . . . 97 . 25 Projectiles . | . . . . . . Explosions 29 | . . . 4 . 25 Melee 93 | . . . 93 . . Knockbacks 1 | . . . 1 . . Impact 1 | . . . 1 . . Kinetic . | . . . . . . Secondary . | . . . . . . Self-Inflicted Damage 35 | . . 35 . . . Shots 1 | . . 1 . . . Rammed . | . . . . . . Targets Rammed . | . . . . . . Kicked . | . . . . . . Crushed . | . . . . . . Highest Temperature 226 | . 226 100 . . 37 Average Temperature 48 | . 90 24 . . 14 Received Heat Transfer 759 | . 120 579 . . 60 Siege Activations . | . . . . . . Robots Corrupted 1 | . . . 1 . . Combat Hostiles . | . . . . . . Parts Fried 6 | . . 5 1 . . Impact Corruptions 1 | . . . 1 . . Robots Melted . | . . . . . . Combat Hostiles . | . . . . . . Parts Melted 1 | . 1 . . . . Heat Transferred 1190 | . 1066 124 . . . Parts Sabotaged . | . . . . . . Parts Stolen . | . . . . . . Parts Stripped . | . . . . . . Power Chain Reactions 1 | . . 1 . . . Alert | -11 -10 -9 -9 -7 -6 ------- Run | Yrd Mat Mat Min Zio Pro Peak Influence 582 | . 237 582 292 . . Initial 201 | . . 13 201 . . Average 228 | . 92 348 220 . . Maximum Alert Level 2 | . 1 2 1 . . Low Security (%) 44 | 100 98 10 . . . Level 1 37 | . 1 51 100 . . Level 2 18 | . . 38 . . . Level 3 . | . . . . . . Level 4 . | . . . . . . Level 5 . | . . . . . . High Security . | . . . . . . Max Security . | . . . . . . Squads Dispatched 5 | . 2 2 1 . . Investigation 1 | . . . 1 . . Extermination . | . . . . . . Reinforcement 4 | . 2 2 . . . Assault . | . . . . . . Garrison . | . . . . . . Intercept . | . . . . . . Searches Triggered . | . . . . . . Construction Impeded . | . . . . . . Haulers Reinforced . | . . . . . . Active Scanning Responses . | . . . . . . Cargo Convoy Interrupts . | . . . . . . Stealth | -11 -10 -9 -9 -7 -6 --------- Run | Yrd Mat Mat Min Zio Pro Distress Signals 4 | . . 4 . . . Communications Jammed . | . . . . . . Distress Signals . | . . . . . . Times Spotted 80 | . 22 39 2 . 17 Peak Tracking Total 6 | . 4 6 3 . 4 Tactical Retreats 5 | . 1 1 1 . 2 Traps | -11 -10 -9 -9 -7 -6 ------- Run | Yrd Mat Mat Min Zio Pro Traps Triggered 3 | . 3 . . . . Indirectly . | . . . . . . Trap Hack Attempts . | . . . . . . Triggered . | . . . . . . Disarmed . | . . . . . . Reprogrammed 3 | . 3 . . . . Reused 1 | . 1 . . . . Traps Extracted . | . . . . . . Installed . | . . . . . . Triggered 1 | . 1 . . . . Machines | -11 -10 -9 -9 -7 -6 ---------- Run | Yrd Mat Mat Min Zio Pro Machines Disabled 1 | . . 1 . . . Max in Single Turn 1 | . . 1 . . . Machines Repaired . | . . . . . . Machines Dismantled . | . . . . . . Machines Sabotaged . | . . . . . . Overloaded Fab Kills . | . . . . . . Hacking | -11 -10 -9 -9 -7 -6 --------- Run | Yrd Mat Mat Min Zio Pro Machines Accessed 15 | . 6 7 1 1 . Terminals 12 | . 6 6 . . . Fabricators . | . . . . . . Repair Stations 1 | . . 1 . . . Recycling Units . | . . . . . . Scanalyzers . | . . . . . . Garrison Access . | . . . . . . Total Hacks 36 | . 15 16 1 4 . Successful 23 | . 8 10 1 4 . Failed 13 | . 7 6 . . . Catastrophic 2 | . 1 1 . . . Database Lockouts . | . . . . . . Manual 4 | . . . . 4 . Terminals 29 | . 15 14 . . . Fabricators . | . . . . . . Repair Stations 2 | . . 2 . . . Recycling Units . | . . . . . . Scanalyzers . | . . . . . . Garrison Access . | . . . . . . Terminal Hacks 21 | . 8 8 1 4 . Part Schematic 4 | . . . . 4 . Prototype ID Bank 2 | . 1 1 . . . Open Door 1 | . . . 1 . . Branch Access Points 1 | . . 1 . . . Recycling Unit Index 1 | . . 1 . . . Unreport Threat 1 | . 1 . . . . Locate Traps 4 | . 1 3 . . . Reprogram Traps 1 | . 1 . . . . Dispatch Records 2 | . 2 . . . . Security Status 1 | . . 1 . . . Assault Status 1 | . 1 . . . . Registered Components 2 | . 1 1 . . . Fabricator Hacks . | . . . . . . Repair Station Hacks 2 | . . 2 . . . Scan Component 1 | . . 1 . . . Repair 1 | . . 1 . . . Recycling Unit Hacks . | . . . . . . Scanalyzer . | . . . . . . Garrison Access Hacks . | . . . . . . Unauthorized Hacks . | . . . . . . Terminals . | . . . . . . Fabricators . | . . . . . . Repair Stations . | . . . . . . Recycling Units . | . . . . . . Scanalyzers . | . . . . . . Garrison Access . | . . . . . . Data Cores Recovered 1 | . . 1 . . . Used 1 | . . 1 . . . Hacking Detections 9 | . 4 5 . . . Full Trace Events . | . . . . . . Feedback Events . | . . . . . . Feedback Blocked . | . . . . . . Robot Schematics Acquired . | . . . . . . Robots Built . | . . . . . . Authchips . | . . . . . . Time . | . . . . . . Total Robot Build Rating . | . . . . . . Part Schematics Acquired 4 | . . . . 4 . Parts Built . | . . . . . . Authchips . | . . . . . . Time . | . . . . . . Total Part Build Rating . | . . . . . . Parts Repaired 1 | . . 1 . . . Time 26 | . . 26 . . . Parts Recycled . | . . . . . . Recycled Matter . | . . . . . . Retrieved Matter . | . . . . . . Retrieved Components . | . . . . . . Parts Scanalyzed . | . . . . . . Part Schematics Acquired . | . . . . . . Parts Damaged . | . . . . . . Bothacking | -11 -10 -9 -9 -7 -6 ------------ Run | Yrd Mat Mat Min Zio Pro Used RIF Installer . | . . . . . . Robots Hacked . | . . . . . . Non-combat . | . . . . . . Combat . | . . . . . . Robot Hacks Applied . | . . . . . . Relay Couplers Released . | . . . . . . Fabnet Peak Effective % . | . . . . . . Robots Rewired . | . . . . . . Allies Hacked . | . . . . . . Hacks Repelled . | . . . . . . Allies | -11 -10 -9 -9 -7 -6 -------- Run | Yrd Mat Mat Min Zio Pro Total Allies 4 | . . . . 4 . Largest Group 4 | . . . . 4 4 Highest-Rated Group 156 | . . . . 156 156 Highest-Rated Ally 41 | . . . . 41 41 Total Orders . | . . . . . . Ally Attacks 18 | . . . . . 18 Total Damage 479 | . . . . . 479 Kills 10 | . . . . . 10 Allies Corrupted . | . . . . . . Allies Melted . | . . . . . . Intel | -11 -10 -9 -9 -7 -6 ------- Run | Yrd Mat Mat Min Zio Pro Robot Analysis Total . | . . . . . . Derelict Logs Recovered 4 | . . . 1 3 . Drone Launches . | . . . . . . Drone Recoveries . | . . . . . . Exploration | -11 -10 -9 -9 -7 -6 ------------- Run | Yrd Mat Mat Min Zio Pro Turns Passed 4218 | 64 787 1022 267 1307 771 Spaces Moved 3362 | 39 654 500 198 1309 662 Core 13 | 11 2 . . . . Treads . | . . . . . . Legs . | . . . . . . Wheels 3349 | 28 652 500 198 1309 662 Hover . | . . . . . . Flight . | . . . . . . Fastest Speed 50 | 50 90 100 93 93 90 Average Speed 93 | 78 93 100 93 93 93 Slowest Speed 100 | 90 100 100 100 93 100 Overloaded Moves . | . . . . . . Propulsion Burnouts . | . . . . . . Robots Hopped . | . . . . . . Cave-ins Triggered . | . . . . . . Exploration Rate (%) 54 | 3 87 47 41 92 57 Regions Visited 5 Branch Regions 3 Pre-discovered Areas . | . . . . . . Known Exits Taken 1 | . . 1 . . . Unknown Exits Taken 4 | 1 1 . 1 1 . Scrap Searched 4 | . . . 2 2 . Spaces Dug 5 | . . . 1 . 4 Terrain Destroyed 30 | . . 4 11 . 15 Melee 4 | . . . 1 . 3 Projectile 2 | . . . . . 2 AOE 24 | . . 4 10 . 10 Terrain Rammed . | . . . . . . Walls Destroyed . | . . . . . . Machines Disabled . | . . . . . . Actions | -11 -10 -9 -9 -7 -6 --------- Run | Yrd Mat Mat Min Zio Pro Total 4178 | 72 784 897 272 1398 755 Wait 530 | 18 59 268 60 76 49 Move 3357 | 38 653 499 197 1308 662 Hop . | . . . . . . Pick Up 65 | 8 22 26 4 3 2 Fast Attach . | . . . . . . Attach 42 | 7 12 18 1 2 2 Detach 3 | . 1 1 . . 1 Swap 21 | . 4 4 3 5 5 Drop 32 | 1 8 15 3 4 1 Fire 121 | . 25 66 1 . 29 Melee 7 | . . . 3 . 4 Ram . | . . . . . . Kick . | . . . . . . Crush . | . . . . . . Escape Stasis . | . . . . . . Rewire . | . . . . . . Trap . | . . . . . . Miscellaneous . | . . . . . . Route ------- -11/Scrapyard -10/Materials (discovered 3 exits: *Mat x3) -9/Materials (discovered 3 exits: *Min / *Sto x2) -9/Mines (discovered 3 exits: [*Mat x2] / *Zio) -7/Zion -6/Proximity Caves History --------- Turn | Location | Event 9 | -11/Scrapyard | Discovered new exit (range 15) 65 | -11/Scrapyard | Entered Materials 328 | -10/Materials | Discovered new exit (range 9) 329 | -10/Materials | Build established: Mutant 567 | -10/Materials | Discovered new exit (range 16) 811 | -10/Materials | Discovered new exit (range 12) 852 | -10/Materials | Entered another Materials area 852 | -9/Materials | Evolved 2 slots: Propulsion x1, Utility x1 960 | -9/Materials | Discovered new exit (range 3) 1218 | -9/Materials | Discovered new exit (range 6) 1486 | -9/Materials | Repaired Corrupted Hacking Suite 1504 | -9/Materials | Core integrity fell below 50% 1641 | -9/Materials | Lost 3 parts (2n1u) 1736 | -9/Materials | Identified exit to Mines 1736 | -9/Materials | Identified exit to Storage 1874 | -9/Materials | Entered Mines 1875 | -9/Mines | Met a Derelict bent on vengeance 1925 | -9/Mines | Discovered new exit (range 9) 1953 | -9/Mines | Met a Derelict shopkeep closing up shop 1993 | -9/Mines | Build established: Scavenger-Mutant 2063 | -9/Mines | Discovered new exit (range 10) 2084 | -9/Mines | A Derelict revealed a hidden shortcut to a safe place 2141 | -9/Mines | Entered Zion 2184 | -7/Zion | System corruption cleaned by Quarantine Array 2228 | -7/Zion | Learned 4 Factory zone layouts 2353 | -7/Zion | Met Imprinter 2373 | -7/Zion | Imprinted 2375 | -7/Zion | Declared Zion's savior 2598 | -7/Zion | Learned location of 1 exit from Lower Caves 2642 | -7/Zion | Found Prototype Device 2643 | -7/Zion | Identified Mobile Refinery Mk. CCLXVII 2672 | -7/Zion | Learned Factory emergency access door positions 2738 | -7/Zion | Found CR-A16's Pointy Stick 3296 | -7/Zion | Given A8's code to call for help 3388 | -7/Zion | Discovered new exit (range 15) 3448 | -7/Zion | Entered Proximity Caves 3448 | -6/Proximity Caves | Accompanied by 4 allies 3623 | -6/Proximity Caves | Lost 3 allies 3720 | -6/Proximity Caves | Spotter reported a threat 3735 | -6/Proximity Caves | Spotted B-75 Beast 3813 | -6/Proximity Caves | Spotter reported a threat 3818 | -6/Proximity Caves | Spotter reported a threat 3890 | -6/Proximity Caves | Spotter reported a threat 3958 | -6/Proximity Caves | Lost 3 parts (1p1n1w) 4155 | -6/Proximity Caves | Core integrity fell below 20% 4196 | -6/Proximity Caves | Build established: Mutant 4219 | -6/Proximity Caves | Destroyed by H-66 Slayer with Gauss Rifle Last Messages --------------- Acquired 5 matter. Acquired 3 matter. Acquired 72 matter. Acquired 6 matter. Wheel destroyed. Penetrated by Slug. Slug penetrates Wall. Slug penetrates H-66 Slayer. Slug penetrates Wall. Lyr. Light Armor Plating destroyed. Penetrated by Slug. Slug penetrates Wall. Penetrated by Slug. Slug penetrates Wall. Barrage Gun destroyed. Slug penetrates Wall. Slug penetrates Storage Shell. Slug penetrates Wall. Gauss Rifle destroyed. Slug penetrates Wall. Map ----- +----------------------------------------------------+ | | | | | | | | | | | | | | | | | | | | | | | | | | | | | | | | | | | | | ?????????????????????????????????????????????????? | | ?????????????????????????????????????????????????? | | ?????????????????????????????????????????????????? | | ?????????????????????????????????????????????????? | | ?????????????????????????????????????????????????? | | ?????????????????????#################???????????? | | ?????????????????????# #???????????? | | ?????????????????????# @ #???????????? | | ?????????????????????# ######+## #???????????? | | ?????????????????????# $# " #???????????? | | ?????????????????????# [ "# #???????????? | | ?????????????????????# " # #???????????? | | ?????????????????????# "#? #???????????? | | ?????????????????????# # "#? #???????????? | | ????????????????????????# + #???????????? | | ????????????????????????# ##??????????? | | ????????????????????????# "T" #??????????? | | ?????????????????????# ?#"" ""# #??????????? | | ?????????????????????# ### ##### ##??????????? | | ?????????????????????# #???????????? | | ?????????????????????# ?????? | | ?????????????????????####### #### ?????? | | ???????????????????????????# ##??##### ??????? | | ???????????????????????????## #??????? ???????? | | ????????????????????????????# #??????? ???????? | | ????????????????????????????## #?????? ???????? | | ?????????????????????????????# ##?????? ????????? | | ?????????????????????????????# #??????? ????????? | | ?????????????????????????????# ######?? #????????? | | ?????????????????????????????# #? #????????? | | ?????????????????????????????###### #? #????????? | | ??????????????????????????????????# #? #????????? | +----------------------------------------------------+ Best States ------------- Heat Dissipation 38 Coolant Potential 50 Energy Generation 10 Energy Capacity 250 Matter Stores 300 Matter Capacity 300 Sight Range 16 Robot Scan Range 14 Terrain Scan Density 10 Armor Coverage 300 Evasion (%) 50 Offensive Hacking 10 Item Schematics ----------------- Ripper | -7/Zion | Free Hvy. Riot Gun | -7/Zion | Free Flamer | -7/Zion | Free Battle Cannon | -7/Zion | Free Robot Schematics ------------------ None Fabricated ------------ Nothing Alien Tech Used ----------------- None Achievements -------------- None Challenges ------------ None Game ------ Seed ClaymoresIonicNetwork Manual? 0 Play Time 00:55:55 Cumulative 20.7 hours Start 2025.05.01 @ 17:09:12 End 2025.05.01 @ 20:42:06 Sessions 5 Manual Loads 0 Difficulty Rogue Special Mode None Game No. 21 Rogue 21 Adventurer 0 Explorer 0 Win Type - Total 0 Types 0/0/0/0/0/0/0/0/0 Lore% 14 Gallery% 20 Achievement% 17 Wizard Run 0 Options --------- Layout 1 ASCII 0 Keyboard 0 Movement Mouse Keybinds 0 Fullscreen 1 Font 24/Smallcaps Map View 50x35 Zoom Use 0% Tactical HUD 0 Map Filters NONE Filters NONE Steam 1 RUN: c88efa39-d41e-4276-9d12-704cd1067864